[Event "Titled Tuesday Blitz October 18 Late 2022"]
[White "Antonio, Jorge Carlos"]
[Black "Burke, Paul"]
[WhiteFideId "113190"]
[BlackFideId "2605767"]
[WhiteElo "2247"]
[BlackElo "1882"]
[Result "1/2-1/2"]
[Round "05"]
[TimeControl "180+1"]
[Date "2022.10.19"]
[WhiteClock "0:00:25"]
[BlackClock "0:00:09"]

1. d4 {[%clk 0:03:00]}  a6 {[%clk 0:02:57]} 2. Nf3 {[%clk 0:03:00]}  d6 {[%clk 0:02:57]} 3. e4 {[%clk 0:02:59]}  g6 {[%clk 0:02:57]} 4. c4 {[%clk 0:02:58]}  Nd7 {[%clk 0:02:57]} 5. Nc3 {[%clk 0:02:58]}  Bg7 {[%clk 0:02:57]} 6. Be3 {[%clk 0:02:56]}  h6 {[%clk 0:02:57]} 7. Qd2 {[%clk 0:02:52]}  e6 {[%clk 0:02:57]} 8. Bd3 {[%clk 0:02:51]}  Ne7 {[%clk 0:02:56]} 9. O-O {[%clk 0:02:50]}  b6 {[%clk 0:02:56]} 10. Rae1 {[%clk 0:02:47]}  Bb7 {[%clk 0:02:56]} 11. d5 {[%clk 0:02:47]}  e5 {[%clk 0:02:56]} 12. h3 {[%clk 0:02:46]}  f5 {[%clk 0:02:48]} 13. exf5 {[%clk 0:02:44]}  gxf5 {[%clk 0:02:47]} 14. Nh4 {[%clk 0:02:29]}  f4 {[%clk 0:02:34]} 15. Bxf4 {[%clk 0:02:28]}  exf4 {[%clk 0:02:32]} 16. Nf5 {[%clk 0:02:17]}  Be5 {[%clk 0:02:15]} 17. Qe2 {[%clk 0:02:12]}  Nxf5 {[%clk 0:01:57]} 18. Bxf5 {[%clk 0:02:10]}  O-O {[%clk 0:01:35]} 19. Be6+ {[%clk 0:02:05]}  Kg7 {[%clk 0:01:33]} 20. Qg4+ {[%clk 0:02:02]}  Qg5 {[%clk 0:01:17]} 21. Bxd7 {[%clk 0:01:57]}  Qxg4 {[%clk 0:01:16]} 22. Bxg4 {[%clk 0:01:55]}  Bxc3 {[%clk 0:01:11]} 23. bxc3 {[%clk 0:01:51]}  Rae8 {[%clk 0:01:11]} 24. Be6 {[%clk 0:01:49]}  Bc8 {[%clk 0:01:08]} 25. Bxc8 {[%clk 0:01:47]}  Rxc8 {[%clk 0:01:07]} 26. a4 {[%clk 0:01:46]}  Rce8 {[%clk 0:01:06]} 27. f3 {[%clk 0:01:34]}  Re5 {[%clk 0:00:58]} 28. Rxe5 {[%clk 0:01:25]}  dxe5 {[%clk 0:00:58]} 29. Kf2 {[%clk 0:01:23]}  a5 {[%clk 0:00:56]} 30. Ke2 {[%clk 0:01:20]}  Kf6 {[%clk 0:00:56]} 31. Kd3 {[%clk 0:01:20]}  Kf5 {[%clk 0:00:55]} 32. Rb1 {[%clk 0:01:16]}  Rg8 {[%clk 0:00:54]} 33. Rb2 {[%clk 0:01:15]}  Re8 {[%clk 0:00:53]} 34. Rb5 {[%clk 0:01:13]}  e4+ {[%clk 0:00:50]} 35. fxe4+ {[%clk 0:01:13]}  Ke5 {[%clk 0:00:44]} 36. c5 {[%clk 0:01:08]}  Rg8 {[%clk 0:00:34]} 37. cxb6 {[%clk 0:01:04]}  cxb6 {[%clk 0:00:34]} 38. Rxb6 {[%clk 0:01:04]}  Rg3+ {[%clk 0:00:33]} 39. Kc4 {[%clk 0:01:02]}  Kxe4 {[%clk 0:00:33]} 40. Re6+ {[%clk 0:01:02]}  Kf5 {[%clk 0:00:31]} 41. Rxh6 {[%clk 0:01:00]}  Rxg2 {[%clk 0:00:31]} 42. Kc5 {[%clk 0:01:00]}  f3 {[%clk 0:00:29]} 43. Rh8 {[%clk 0:01:00]}  Rg6 {[%clk 0:00:29]} 44. Rh5+ {[%clk 0:00:40]}  Kf6 {[%clk 0:00:20]} 45. Rh4 {[%clk 0:00:36]}  Kf5 {[%clk 0:00:18]} 46. Rh5+ {[%clk 0:00:35]}  Kf6 {[%clk 0:00:18]} 47. Rh8 {[%clk 0:00:34]}  Rg7 {[%clk 0:00:15]} 48. Rh4 {[%clk 0:00:33]}  Kf5 {[%clk 0:00:13]} 49. Rh8 {[%clk 0:00:29]}  Kf6 {[%clk 0:00:09]} 50. Rh4 {[%clk 0:00:26]}  Kf5 {[%clk 0:00:09]} 51. Rh8 {[%clk 0:00:25]}  Kf6 {[%clk 0:00:09]} 1/2-1/2


[Site "https://www.chess.com"]

[Event "Titled Tuesday Blitz October 18 Late 2022"]
[White "Aqib Javaid Butt"]
[Black "Bettalli, Francesco"]
[WhiteFideId "7801262"]
[BlackFideId "2816453"]
[WhiteElo "1659"]
[BlackElo "2216"]
[Result "0-1"]
[Round "05"]
[TimeControl "180+1"]
[Date "2022.10.19"]
[WhiteClock "0:00:35"]
[BlackClock "0:00:14"]

1. d4 {[%clk 0:03:00]}  Nf6 {[%clk 0:01:50]} 2. Nf3 {[%clk 0:02:56]}  g6 {[%clk 0:01:50]} 3. c4 {[%clk 0:02:54]}  Bg7 {[%clk 0:01:50]} 4. Nc3 {[%clk 0:02:54]}  O-O {[%clk 0:01:51]} 5. g3 {[%clk 0:02:52]}  d6 {[%clk 0:01:50]} 6. Bg2 {[%clk 0:02:53]}  Nc6 {[%clk 0:01:50]} 7. O-O {[%clk 0:02:53]}  a6 {[%clk 0:01:46]} 8. d5 {[%clk 0:02:52]}  Na5 {[%clk 0:01:44]} 9. Nd2 {[%clk 0:02:52]}  c5 {[%clk 0:01:43]} 10. Qc2 {[%clk 0:02:48]}  Rb8 {[%clk 0:01:39]} 11. a4 {[%clk 0:02:42]}  Ne8 {[%clk 0:01:31]} 12. b3 {[%clk 0:02:36]}  b5 {[%clk 0:01:29]} 13. Bb2 {[%clk 0:02:31]}  bxc4 {[%clk 0:01:28]} 14. bxc4 {[%clk 0:02:29]}  Rb4 {[%clk 0:01:23]} 15. Rab1 {[%clk 0:02:15]}  Nxc4 {[%clk 0:01:21]} 16. Nxc4 {[%clk 0:02:13]}  Rxc4 {[%clk 0:01:21]} 17. Ba1 {[%clk 0:02:00]}  Qa5 {[%clk 0:01:09]} 18. Rfc1 {[%clk 0:01:52]}  Nc7 {[%clk 0:01:05]} 19. Qd3 {[%clk 0:01:43]}  Rb4 {[%clk 0:01:04]} 20. Rxb4 {[%clk 0:01:34]}  cxb4 {[%clk 0:01:03]} 21. Ne4 {[%clk 0:01:24]}  Bxa1 {[%clk 0:00:56]} 22. Rxa1 {[%clk 0:01:25]}  Bf5 {[%clk 0:00:52]} 23. Qc4 {[%clk 0:01:16]}  Kg7 {[%clk 0:00:44]} 24. g4 {[%clk 0:01:06]}  Bxe4 {[%clk 0:00:40]} 25. Bxe4 {[%clk 0:01:06]}  Rb8 {[%clk 0:00:33]} 26. Rc1 {[%clk 0:01:03]}  Ne8 {[%clk 0:00:33]} 27. Qd4+ {[%clk 0:00:57]}  Kg8 {[%clk 0:00:31]} 28. g5 {[%clk 0:00:54]}  b3 {[%clk 0:00:30]} 29. Rc3 {[%clk 0:00:54]}  b2 {[%clk 0:00:29]} 30. Rh3 {[%clk 0:00:54]}  b1=Q+ {[%clk 0:00:26]} 31. Bxb1 {[%clk 0:00:55]}  Rxb1+ {[%clk 0:00:26]} 32. Kg2 {[%clk 0:00:55]}  Qe1 {[%clk 0:00:24]} 33. Qh4 {[%clk 0:00:55]}  Qh1+ {[%clk 0:00:23]} 34. Kg3 {[%clk 0:00:54]}  Rg1+ {[%clk 0:00:24]} 35. Kf4 {[%clk 0:00:55]}  h5 {[%clk 0:00:22]} 36. gxh6 {[%clk 0:00:54]}  Qxd5 {[%clk 0:00:19]} 37. h7+ {[%clk 0:00:42]}  Kh8 {[%clk 0:00:19]} 38. Qxe7 {[%clk 0:00:40]}  Qf5+ {[%clk 0:00:17]} 39. Ke3 {[%clk 0:00:38]}  Qxh3+ {[%clk 0:00:16]} 40. Kd2 {[%clk 0:00:37]}  Qh6+ {[%clk 0:00:15]} 41. e3 {[%clk 0:00:37]}  Ng7 {[%clk 0:00:14]} 42. Qxf7 {[%clk 0:00:35]}  Kxh7 {[%clk 0:00:14]} 0-1


[Site "https://www.chess.com"]

[Event "Titled Tuesday Blitz October 18 Late 2022"]
[White "Arkell, Keith C"]
[Black "Alexikov, Alexander"]
[WhiteFideId "400270"]
[BlackFideId "14103958"]
[WhiteElo "2336"]
[BlackElo "2222"]
[Result "1-0"]
[Round "05"]
[TimeControl "180+1"]
[Date "2022.10.19"]
[WhiteClock "0:01:02"]
[BlackClock "0:00:01"]

1. d4 {[%clk 0:03:00]}  Nf6 {[%clk 0:02:59]} 2. Nf3 {[%clk 0:03:00]}  g6 {[%clk 0:03:00]} 3. c4 {[%clk 0:03:00]}  Bg7 {[%clk 0:03:00]} 4. g3 {[%clk 0:03:01]}  d6 {[%clk 0:03:00]} 5. Bg2 {[%clk 0:03:01]}  O-O {[%clk 0:03:01]} 6. O-O {[%clk 0:03:02]}  c6 {[%clk 0:03:01]} 7. Nc3 {[%clk 0:03:02]}  Qa5 {[%clk 0:03:00]} 8. e4 {[%clk 0:03:01]}  Bg4 {[%clk 0:02:50]} 9. h3 {[%clk 0:03:01]}  Bxf3 {[%clk 0:02:47]} 10. Bxf3 {[%clk 0:03:01]}  Nfd7 {[%clk 0:02:46]} 11. a3 {[%clk 0:02:59]}  c5 {[%clk 0:02:39]} 12. e5 {[%clk 0:02:58]}  Nc6 {[%clk 0:02:27]} 13. Bxc6 {[%clk 0:02:55]}  bxc6 {[%clk 0:02:26]} 14. exd6 {[%clk 0:02:53]}  cxd4 {[%clk 0:02:13]} 15. dxe7 {[%clk 0:02:53]}  Rfe8 {[%clk 0:02:11]} 16. Qa4 {[%clk 0:02:45]}  Qf5 {[%clk 0:02:05]} 17. Ne2 {[%clk 0:02:41]}  Rxe7 {[%clk 0:01:29]} 18. Qxc6 {[%clk 0:02:39]}  Rae8 {[%clk 0:01:28]} 19. Nf4 {[%clk 0:02:39]}  Ne5 {[%clk 0:01:19]} 20. Qg2 {[%clk 0:02:37]}  Nxc4 {[%clk 0:01:13]} 21. b3 {[%clk 0:02:37]}  d3 {[%clk 0:01:08]} 22. Ra2 {[%clk 0:02:38]}  Na5 {[%clk 0:00:58]} 23. Rd2 {[%clk 0:02:29]}  Rd7 {[%clk 0:00:46]} 24. Rfd1 {[%clk 0:02:28]}  Red8 {[%clk 0:00:44]} 25. Bb2 {[%clk 0:02:03]}  Nxb3 {[%clk 0:00:42]} 26. Bxg7 {[%clk 0:02:02]}  Nxd2 {[%clk 0:00:39]} 27. Ba1 {[%clk 0:01:58]}  Nb3 {[%clk 0:00:35]} 28. Bb2 {[%clk 0:01:57]}  d2 {[%clk 0:00:35]} 29. Qc6 {[%clk 0:01:52]}  Nd4 {[%clk 0:00:13]} 30. Qg2 {[%clk 0:01:28]}  Qc2 {[%clk 0:00:07]} 31. Rxd2 {[%clk 0:01:09]}  Qxd2 {[%clk 0:00:06]} 32. Bxd4 {[%clk 0:01:05]}  Qxd4 {[%clk 0:00:05]} 33. Kh2 {[%clk 0:01:02]}  g5 {[%clk 0:00:03]} 34. Nh5 {[%clk 0:01:02]}  Rd6 {[%clk 0:00:02]} 35. Qf3 {[%clk 0:01:02]}  h6 {[%clk 0:00:01]} 36. g4 {[%clk 0:01:02]} 1-0


[Site "https://www.chess.com"]

[Event "Titled Tuesday Blitz October 18 Late 2022"]
[White "Ballester Llagaria, Luis Eduardo"]
[Black "Pakleza, Zbigniew"]
[WhiteFideId "2297620"]
[BlackFideId "1119290"]
[WhiteElo "2344"]
[BlackElo "2411"]
[Result "0-1"]
[Round "05"]
[TimeControl "180+1"]
[Date "2022.10.18"]
[WhiteClock "0:00:07"]
[BlackClock "0:00:53"]

1. e4 {[%clk 0:03:00]}  d6 {[%clk 0:03:00]} 2. d4 {[%clk 0:02:59]}  Nf6 {[%clk 0:03:01]} 3. Nc3 {[%clk 0:02:59]}  c6 {[%clk 0:03:01]} 4. f4 {[%clk 0:02:59]}  Qb6 {[%clk 0:03:01]} 5. Nf3 {[%clk 0:02:54]}  Bg4 {[%clk 0:03:01]} 6. e5 {[%clk 0:02:27]}  Nd5 {[%clk 0:03:00]} 7. Bc4 {[%clk 0:02:05]}  e6 {[%clk 0:02:55]} 8. O-O {[%clk 0:02:01]}  Nd7 {[%clk 0:02:52]} 9. Bb3 {[%clk 0:01:54]}  dxe5 {[%clk 0:02:46]} 10. Nxd5 {[%clk 0:01:50]}  cxd5 {[%clk 0:02:43]} 11. fxe5 {[%clk 0:01:51]}  Nxe5 {[%clk 0:02:38]} 12. Ba4+ {[%clk 0:01:31]}  Nc6 {[%clk 0:02:30]} 13. c3 {[%clk 0:01:31]}  Bd6 {[%clk 0:02:23]} 14. Bc2 {[%clk 0:01:27]}  O-O-O {[%clk 0:02:10]} 15. h3 {[%clk 0:00:54]}  Bh5 {[%clk 0:02:09]} 16. b4 {[%clk 0:00:49]}  Qc7 {[%clk 0:01:59]} 17. Qe1 {[%clk 0:00:45]}  Bg3 {[%clk 0:01:48]} 18. Qe3 {[%clk 0:00:42]}  Bd6 {[%clk 0:01:28]} 19. a4 {[%clk 0:00:34]}  Rde8 {[%clk 0:01:22]} 20. a5 {[%clk 0:00:29]}  Kb8 {[%clk 0:01:18]} 21. a6 {[%clk 0:00:22]}  b6 {[%clk 0:01:18]} 22. b5 {[%clk 0:00:23]}  Na5 {[%clk 0:01:18]} 23. Rxa5 {[%clk 0:00:20]}  bxa5 {[%clk 0:01:19]} 24. Bd2 {[%clk 0:00:18]}  f6 {[%clk 0:01:13]} 25. Rb1 {[%clk 0:00:14]}  Ka8 {[%clk 0:01:08]} 26. Bd3 {[%clk 0:00:11]}  Bg6 {[%clk 0:01:05]} 27. Bxg6 {[%clk 0:00:10]}  hxg6 {[%clk 0:01:06]} 28. Qe1 {[%clk 0:00:10]}  Re7 {[%clk 0:00:59]} 29. c4 {[%clk 0:00:10]}  Qxc4 {[%clk 0:01:00]} 30. Bxa5 {[%clk 0:00:11]}  Rb8 {[%clk 0:01:00]} 31. b6 {[%clk 0:00:11]}  Qxa6 {[%clk 0:00:55]} 32. bxa7 {[%clk 0:00:07]}  Rxb1 {[%clk 0:00:56]} 33. Qxb1 {[%clk 0:00:07]}  Qxa5 {[%clk 0:00:53]} 0-1


[Site "https://www.chess.com"]

[Event "Titled Tuesday Blitz October 18 Late 2022"]
[White "Barria Zuniga, Daniel"]
[Black "Shimanov, Aleksandr"]
[WhiteFideId "3400816"]
[BlackFideId "4198603"]
[WhiteElo "2414"]
[BlackElo "2605"]
[Result "0-1"]
[Round "05"]
[TimeControl "180+1"]
[Date "2022.10.18"]
[WhiteClock "0:00:03"]
[BlackClock "0:01:51"]

1. d4 {[%clk 0:03:00]}  d5 {[%clk 0:02:56]} 2. c4 {[%clk 0:02:15]}  e6 {[%clk 0:02:54]} 3. Nf3 {[%clk 0:01:49]}  c5 {[%clk 0:02:53]} 4. cxd5 {[%clk 0:01:47]}  exd5 {[%clk 0:02:54]} 5. Nc3 {[%clk 0:01:46]}  Nf6 {[%clk 0:02:47]} 6. Bg5 {[%clk 0:01:41]}  Be6 {[%clk 0:02:47]} 7. dxc5 {[%clk 0:01:35]}  Bxc5 {[%clk 0:02:46]} 8. e3 {[%clk 0:01:35]}  O-O {[%clk 0:02:45]} 9. Be2 {[%clk 0:01:35]}  h6 {[%clk 0:02:44]} 10. Bh4 {[%clk 0:01:34]}  Nc6 {[%clk 0:02:41]} 11. O-O {[%clk 0:01:34]}  g5 {[%clk 0:02:35]} 12. Bg3 {[%clk 0:01:33]}  Ne4 {[%clk 0:02:35]} 13. Rc1 {[%clk 0:01:22]}  Be7 {[%clk 0:02:34]} 14. Nd4 {[%clk 0:01:12]}  Nxd4 {[%clk 0:02:33]} 15. Qxd4 {[%clk 0:01:10]}  Nxg3 {[%clk 0:02:27]} 16. hxg3 {[%clk 0:01:01]}  Bf6 {[%clk 0:02:27]} 17. Qb4 {[%clk 0:01:01]}  a5 {[%clk 0:02:23]} 18. Qxb7 {[%clk 0:00:55]}  Rb8 {[%clk 0:02:23]} 19. Qa7 {[%clk 0:00:55]}  Rxb2 {[%clk 0:02:23]} 20. Bf3 {[%clk 0:00:54]}  d4 {[%clk 0:02:22]} 21. Ne4 {[%clk 0:00:51]}  Bg7 {[%clk 0:02:08]} 22. Rfd1 {[%clk 0:00:44]}  g4 {[%clk 0:02:07]} 23. exd4 {[%clk 0:00:21]}  gxf3 {[%clk 0:02:05]} 24. d5 {[%clk 0:00:21]}  Bg4 {[%clk 0:02:02]} 25. d6 {[%clk 0:00:08]}  fxg2 {[%clk 0:02:01]} 26. Rd3 {[%clk 0:00:02]}  Bf5 {[%clk 0:01:55]} 27. Re3 {[%clk 0:00:03]}  Bxe4 {[%clk 0:01:54]} 28. Rxe4 {[%clk 0:00:03]}  Qxd6 {[%clk 0:01:54]} 29. Kxg2 {[%clk 0:00:03]}  Qd5 {[%clk 0:01:51]} 0-1


[Site "https://www.chess.com"]

[Event "Titled Tuesday Blitz October 18 Late 2022"]
[White "Besedes, Danilo"]
[Black "Ozen, Bahadir"]
[WhiteFideId "946796"]
[BlackFideId "6337058"]
[WhiteElo "2352"]
[BlackElo "2503"]
[Result "0-1"]
[Round "05"]
[TimeControl "180+1"]
[Date "2022.10.18"]
[WhiteClock "0:00:02"]
[BlackClock "0:00:14"]

1. d4 {[%clk 0:02:22]}  g6 {[%clk 0:02:59]} 2. Bf4 {[%clk 0:02:22]}  Bg7 {[%clk 0:02:58]} 3. e3 {[%clk 0:02:23]}  d6 {[%clk 0:02:58]} 4. Nf3 {[%clk 0:02:23]}  Nd7 {[%clk 0:02:58]} 5. Bb5 {[%clk 0:02:20]}  c6 {[%clk 0:02:46]} 6. Be2 {[%clk 0:02:20]}  e5 {[%clk 0:02:32]} 7. Bg3 {[%clk 0:02:20]}  Nh6 {[%clk 0:02:33]} 8. Nbd2 {[%clk 0:02:17]}  Nf5 {[%clk 0:02:32]} 9. c3 {[%clk 0:02:15]}  Qe7 {[%clk 0:02:28]} 10. e4 {[%clk 0:02:10]}  Nxg3 {[%clk 0:02:27]} 11. hxg3 {[%clk 0:02:11]}  O-O {[%clk 0:02:26]} 12. O-O {[%clk 0:02:11]}  Nf6 {[%clk 0:02:10]} 13. Bd3 {[%clk 0:02:10]}  b5 {[%clk 0:02:00]} 14. Re1 {[%clk 0:02:07]}  a6 {[%clk 0:01:59]} 15. a4 {[%clk 0:01:48]}  Bb7 {[%clk 0:01:59]} 16. Qb3 {[%clk 0:01:45]}  Rfb8 {[%clk 0:01:52]} 17. Rad1 {[%clk 0:01:43]}  Nd7 {[%clk 0:01:50]} 18. Bf1 {[%clk 0:01:37]}  Nb6 {[%clk 0:01:49]} 19. axb5 {[%clk 0:01:37]}  axb5 {[%clk 0:01:46]} 20. Ra1 {[%clk 0:01:37]}  Bh6 {[%clk 0:01:35]} 21. c4 {[%clk 0:01:14]}  Nxc4 {[%clk 0:01:24]} 22. Nxc4 {[%clk 0:01:09]}  bxc4 {[%clk 0:01:24]} 23. Bxc4 {[%clk 0:01:02]}  Bc8 {[%clk 0:01:12]} 24. Rxa8 {[%clk 0:00:59]}  Rxa8 {[%clk 0:01:13]} 25. dxe5 {[%clk 0:00:57]}  dxe5 {[%clk 0:01:13]} 26. Rd1 {[%clk 0:00:55]}  Bg4 {[%clk 0:00:53]} 27. Qb6 {[%clk 0:00:47]}  Bxf3 {[%clk 0:00:53]} 28. gxf3 {[%clk 0:00:47]}  Bf8 {[%clk 0:00:50]} 29. Qxc6 {[%clk 0:00:43]}  Rd8 {[%clk 0:00:51]} 30. Bd5 {[%clk 0:00:39]}  Rb8 {[%clk 0:00:48]} 31. b3 {[%clk 0:00:38]}  Kg7 {[%clk 0:00:49]} 32. Kg2 {[%clk 0:00:37]}  h5 {[%clk 0:00:49]} 33. Ra1 {[%clk 0:00:35]}  h4 {[%clk 0:00:46]} 34. Rh1 {[%clk 0:00:21]}  hxg3 {[%clk 0:00:43]} 35. fxg3 {[%clk 0:00:20]}  Rb4 {[%clk 0:00:36]} 36. Qc3 {[%clk 0:00:20]}  Rd4 {[%clk 0:00:36]} 37. Qc1 {[%clk 0:00:19]}  Kg8 {[%clk 0:00:35]} 38. Rd1 {[%clk 0:00:16]}  Rxd1 {[%clk 0:00:29]} 39. Qxd1 {[%clk 0:00:16]}  Qc5 {[%clk 0:00:25]} 40. Qd2 {[%clk 0:00:15]}  Kg7 {[%clk 0:00:22]} 41. Qg5 {[%clk 0:00:15]}  Qc2+ {[%clk 0:00:17]} 42. Kh3 {[%clk 0:00:15]}  Qc8+ {[%clk 0:00:18]} 43. Kg2 {[%clk 0:00:14]}  Qc2+ {[%clk 0:00:18]} 44. Kh3 {[%clk 0:00:13]}  Qc8+ {[%clk 0:00:18]} 45. g4 {[%clk 0:00:12]}  Qc3 {[%clk 0:00:14]} 46. Kg3 {[%clk 0:00:05]}  Bc5 {[%clk 0:00:14]} 47. Qd8 {[%clk 0:00:01]}  Qe1+ {[%clk 0:00:14]} 48. Kh3 {[%clk 0:00:01]}  Qh1+ {[%clk 0:00:14]} 49. Kg3 {[%clk 0:00:02]}  Qg1+ {[%clk 0:00:15]} 50. Kh3 {[%clk 0:00:03]}  Qf1+ {[%clk 0:00:13]} 51. Kh2 {[%clk 0:00:02]}  Bg1+ {[%clk 0:00:13]} 52. Kg3 {[%clk 0:00:02]}  Qf2+ {[%clk 0:00:14]} 0-1


[Site "https://www.chess.com"]

[Event "Titled Tuesday Blitz October 18 Late 2022"]
[White "Brown, Andrew"]
[Black "Mortazavi, Ali"]
[WhiteFideId "3206513"]
[BlackFideId "401323"]
[WhiteElo "2245"]
[BlackElo "2339"]
[Result "0-1"]
[Round "05"]
[TimeControl "180+1"]
[Date "2022.10.19"]
[WhiteClock "0:00:05"]
[BlackClock "0:00:18"]

1. d4 {[%clk 0:03:00]}  Nf6 {[%clk 0:02:49]} 2. c4 {[%clk 0:03:00]}  g6 {[%clk 0:02:43]} 3. Nc3 {[%clk 0:03:01]}  Bg7 {[%clk 0:02:41]} 4. e4 {[%clk 0:03:01]}  d6 {[%clk 0:02:42]} 5. Nf3 {[%clk 0:03:00]}  O-O {[%clk 0:02:41]} 6. Be2 {[%clk 0:03:01]}  Bg4 {[%clk 0:02:41]} 7. Be3 {[%clk 0:03:00]}  Nbd7 {[%clk 0:02:40]} 8. O-O {[%clk 0:02:54]}  e5 {[%clk 0:02:39]} 9. d5 {[%clk 0:02:50]}  a5 {[%clk 0:02:39]} 10. a3 {[%clk 0:02:42]}  b6 {[%clk 0:02:37]} 11. b4 {[%clk 0:02:41]}  Kh8 {[%clk 0:02:32]} 12. h3 {[%clk 0:02:36]}  Bxf3 {[%clk 0:02:31]} 13. Bxf3 {[%clk 0:02:37]}  Ne8 {[%clk 0:02:32]} 14. Qc2 {[%clk 0:02:17]}  f5 {[%clk 0:02:29]} 15. Nb5 {[%clk 0:02:08]}  Qh4 {[%clk 0:02:14]} 16. Rfc1 {[%clk 0:01:18]}  Bh6 {[%clk 0:02:12]} 17. Qd2 {[%clk 0:00:58]}  Bxe3 {[%clk 0:02:12]} 18. Qxe3 {[%clk 0:00:58]}  Ndf6 {[%clk 0:01:48]} 19. Nxc7 {[%clk 0:00:36]}  Nxc7 {[%clk 0:01:45]} 20. Qxb6 {[%clk 0:00:36]}  fxe4 {[%clk 0:01:40]} 21. Be2 {[%clk 0:00:32]}  Ncxd5 {[%clk 0:01:28]} 22. cxd5 {[%clk 0:00:31]}  Nxd5 {[%clk 0:01:28]} 23. Qc6 {[%clk 0:00:27]}  Qxf2+ {[%clk 0:01:26]} 24. Kh1 {[%clk 0:00:27]}  Nf4 {[%clk 0:00:51]} 25. Bf1 {[%clk 0:00:26]}  Nh5 {[%clk 0:00:45]} 26. Qxd6 {[%clk 0:00:20]}  Rae8 {[%clk 0:00:41]} 27. b5 {[%clk 0:00:16]}  e3 {[%clk 0:00:33]} 28. Re1 {[%clk 0:00:07]}  Ng3+ {[%clk 0:00:29]} 29. Kh2 {[%clk 0:00:07]}  Qf4 {[%clk 0:00:24]} 30. Kg1 {[%clk 0:00:04]}  Qf2+ {[%clk 0:00:18]} 31. Kh2 {[%clk 0:00:05]}  e2 {[%clk 0:00:18]} 32. Bxe2 {[%clk 0:00:05]}  Nxe2 {[%clk 0:00:19]} 33. Rf1 {[%clk 0:00:05]}  Qg3+ {[%clk 0:00:19]} 34. Kh1 {[%clk 0:00:06]}  Nf4 {[%clk 0:00:19]} 35. Qc6 {[%clk 0:00:05]}  e4 {[%clk 0:00:18]} 36. Qc3+ {[%clk 0:00:05]}  Qxc3 {[%clk 0:00:18]} 0-1


[Site "https://www.chess.com"]

[Event "Titled Tuesday Blitz October 18 Late 2022"]
[White "Celestino, Rafael Teixeira"]
[Black "Winterberg, Lukas"]
[WhiteFideId "2108925"]
[BlackFideId "24622702"]
[WhiteElo "2333"]
[BlackElo "2349"]
[Result "1-0"]
[Round "05"]
[TimeControl "180+1"]
[Date "2022.10.19"]
[WhiteClock "0:01:04"]
[BlackClock "0:00:01"]

1. e4 {[%clk 0:03:00]}  c5 {[%clk 0:02:58]} 2. Nf3 {[%clk 0:02:58]}  e6 {[%clk 0:02:56]} 3. d4 {[%clk 0:02:57]}  cxd4 {[%clk 0:02:57]} 4. Nxd4 {[%clk 0:02:57]}  Nc6 {[%clk 0:02:56]} 5. Nc3 {[%clk 0:02:57]}  Qc7 {[%clk 0:02:50]} 6. Ndb5 {[%clk 0:02:55]}  Qb8 {[%clk 0:02:36]} 7. Be3 {[%clk 0:02:41]}  a6 {[%clk 0:02:22]} 8. Nd4 {[%clk 0:02:39]}  Nf6 {[%clk 0:02:20]} 9. Bd3 {[%clk 0:02:16]}  Bd6 {[%clk 0:01:56]} 10. g3 {[%clk 0:02:06]}  h5 {[%clk 0:01:46]} 11. f4 {[%clk 0:02:04]}  Ng4 {[%clk 0:01:44]} 12. Bg1 {[%clk 0:01:58]}  Nxd4 {[%clk 0:01:24]} 13. Bxd4 {[%clk 0:01:59]}  Qc7 {[%clk 0:01:19]} 14. h3 {[%clk 0:01:51]}  e5 {[%clk 0:00:23]} 15. Nd5 {[%clk 0:01:30]}  Qd8 {[%clk 0:00:15]} 16. Bb6 {[%clk 0:01:21]}  Qxb6 {[%clk 0:00:08]} 17. Nxb6 {[%clk 0:01:19]}  Rb8 {[%clk 0:00:08]} 18. hxg4 {[%clk 0:01:17]}  Bc5 {[%clk 0:00:07]} 19. Nxc8 {[%clk 0:01:04]}  Rxc8 {[%clk 0:00:03]} 20. Rxh5 {[%clk 0:01:05]}  Rxh5 {[%clk 0:00:02]} 21. gxh5 {[%clk 0:01:05]}  d6 {[%clk 0:00:01]} 22. Qg4 {[%clk 0:01:04]} 1-0


[Site "https://www.chess.com"]

[Event "Titled Tuesday Blitz October 18 Late 2022"]
[White "Cosoi Scherzer, Alejandro"]
[Black "Rosenberg, Evan S"]
[WhiteFideId "3401430"]
[BlackFideId "2019299"]
[WhiteElo "1967"]
[BlackElo "2360"]
[Result "1/2-1/2"]
[Round "05"]
[TimeControl "180+1"]
[Date "2022.10.19"]
[WhiteClock "0:00:17"]
[BlackClock "0:00:10"]

1. e4 {[%clk 0:02:51]}  e5 {[%clk 0:02:44]} 2. Nf3 {[%clk 0:02:48]}  Nc6 {[%clk 0:02:44]} 3. Bb5 {[%clk 0:02:48]}  Bb4 {[%clk 0:02:41]} 4. O-O {[%clk 0:02:46]}  Nge7 {[%clk 0:02:41]} 5. c3 {[%clk 0:02:46]}  Ba5 {[%clk 0:02:42]} 6. b4 {[%clk 0:02:45]}  Bb6 {[%clk 0:02:41]} 7. a4 {[%clk 0:02:45]}  a6 {[%clk 0:02:40]} 8. Bc4 {[%clk 0:02:46]}  d6 {[%clk 0:02:35]} 9. a5 {[%clk 0:02:46]}  Ba7 {[%clk 0:02:36]} 10. h3 {[%clk 0:02:46]}  h6 {[%clk 0:02:32]} 11. d3 {[%clk 0:02:46]}  Ng6 {[%clk 0:02:29]} 12. Re1 {[%clk 0:02:44]}  O-O {[%clk 0:02:28]} 13. Nbd2 {[%clk 0:02:42]}  Nf4 {[%clk 0:02:27]} 14. Nf1 {[%clk 0:02:37]}  Qf6 {[%clk 0:02:26]} 15. Ng3 {[%clk 0:02:24]}  Bxh3 {[%clk 0:02:06]} 16. gxh3 {[%clk 0:01:49]}  Nxh3+ {[%clk 0:02:07]} 17. Kg2 {[%clk 0:01:44]}  Nxf2 {[%clk 0:01:53]} 18. Qe2 {[%clk 0:01:39]}  Ng4 {[%clk 0:01:35]} 19. Rf1 {[%clk 0:01:34]}  Ne7 {[%clk 0:00:53]} 20. Nh2 {[%clk 0:01:26]}  Nf2 {[%clk 0:00:24]} 21. Rxf2 {[%clk 0:01:18]}  Bxf2 {[%clk 0:00:25]} 22. Qxf2 {[%clk 0:01:17]}  Qxf2+ {[%clk 0:00:20]} 23. Kxf2 {[%clk 0:01:18]}  c6 {[%clk 0:00:21]} 24. Bb3 {[%clk 0:01:16]}  d5 {[%clk 0:00:21]} 25. Be3 {[%clk 0:01:11]}  f5 {[%clk 0:00:21]} 26. Bc5 {[%clk 0:00:54]}  fxe4+ {[%clk 0:00:21]} 27. Kg2 {[%clk 0:00:52]}  Rf7 {[%clk 0:00:19]} 28. dxe4 {[%clk 0:00:51]}  Rd8 {[%clk 0:00:17]} 29. Bxe7 {[%clk 0:00:37]}  Rxe7 {[%clk 0:00:17]} 30. Nf5 {[%clk 0:00:38]}  Rf7 {[%clk 0:00:18]} 31. Rd1 {[%clk 0:00:31]}  Kh7 {[%clk 0:00:18]} 32. Ng4 {[%clk 0:00:24]}  g6 {[%clk 0:00:14]} 33. Nfxh6 {[%clk 0:00:23]}  Rf4 {[%clk 0:00:14]} 34. Kg3 {[%clk 0:00:21]}  Rdf8 {[%clk 0:00:11]} 35. Rd3 {[%clk 0:00:21]}  Rf1 {[%clk 0:00:10]} 36. exd5 {[%clk 0:00:19]}  Rg1+ {[%clk 0:00:10]} 37. Kh2 {[%clk 0:00:18]}  Rff1 {[%clk 0:00:10]} 38. d6 {[%clk 0:00:16]}  Rh1+ {[%clk 0:00:10]} 39. Kg2 {[%clk 0:00:16]}  Rhg1+ {[%clk 0:00:10]} 40. Kh2 {[%clk 0:00:16]}  Rh1+ {[%clk 0:00:10]} 41. Kg2 {[%clk 0:00:17]}  Rhg1+ {[%clk 0:00:10]} 42. Kh2 {[%clk 0:00:17]} 1/2-1/2


[Site "https://www.chess.com"]